fUSD/lending_fUSD_20251228
["ID","MTS","AMOUNT","RATE_DAILY","PERIOD"]
[399962165,1766946643011,-150.0,0.00015511,2]
[399962166,1766946643020,-150.0,0.00015514,2]
[399962167,1766946643030,-150.0,0.00015519,2]
[399962168,1766946643039,-150.0,0.00015525,2]
[399962169,1766946643050,-150.0,0.00015527,2]
[399962170,1766946643060,-150.0,0.0001553,2]
[399962171,1766946643070,-9456.11098514,0.00015532,2]
[399962172,1766946643080,-150.0,0.00015539,2]
[399962173,1766946643090,-150.0,0.00015541,2]
[399962174,1766946643100,-150.0,0.00015553,2]
[399962175,1766946643110,-150.0,0.00015555,2]
[399962176,1766946643120,-150.0,0.00015556,2]
[399962177,1766946643129,-150.0,0.00015558,2]
[399962178,1766946643139,-953.87,0.00015563,2]
[399962179,1766946643149,-150.0,0.00015564,2]
[399962180,1766946643160,-150.0,0.00015571,2]
[399962181,1766946643169,-150.0,0.00015571,2]
[399962182,1766946643179,-150.0,0.00015577,2]
[399962183,1766946643188,-150.0,0.00015577,2]
[399962184,1766946643198,-150.0,0.00015579,2]
[399962185,1766946643207,-150.0,0.0001558,2]
[399962186,1766946643218,-342.81583742,0.0001558,2]
[399962187,1766946643227,-150.0,0.00015587,2]
[399962188,1766946643237,-150.0,0.00015597,2]
[399962189,1766946643248,-150.0,0.00015601,2]
[399962190,1766946643258,-150.0,0.00015603,2]
[399962191,1766946643267,-150.0,0.00015604,2]
[399962192,1766946643276,-150.0,0.00015606,2]
[399962193,1766946643285,-150.0,0.00015613,2]
[399962194,1766946643295,-150.0,0.00015616,2]
[399962195,1766946643304,-150.0,0.00015627,2]
[399962196,1766946643313,-150.0,0.00015627,2]
[399962197,1766946643323,-150.0,0.00015627,2]
[399962198,1766946643333,-150.0,0.00015627,2]
[399962199,1766946643343,-150.0,0.00015633,2]
[399962200,1766946643352,-150.0,0.00015635,2]
[399962201,1766946643362,-150.0,0.00015643,2]
[399962202,1766946643371,-150.0,0.00015645,2]
[399962203,1766946643382,-150.0,0.00015649,2]
[399962205,1766946643391,-150.0,0.00015652,2]
[399962206,1766946643401,-150.0,0.00015654,2]
[399962207,1766946643410,-150.0,0.00015659,2]
[399962208,1766946643419,-500.0,0.00015668,2]
[399962209,1766946643429,-1500.0,0.00015668,2]
[399962210,1766946643439,-1500.0,0.00015668,2]
[399962212,1766946643448,-507.00799583,0.00015668,2]
[399962214,1766946643457,-1500.0,0.00015668,2]
[399962215,1766946643468,-1500.0,0.00015668,2]
[399962217,1766946643478,-150.0,0.00015674,2]
[399962218,1766946643488,-150.0,0.00015676,2]
[399962219,1766946643498,-150.0,0.00015683,2]
[399962220,1766946643508,-150.0,0.00015684,2]
[399962221,1766946643517,-150.0,0.00015685,2]
[399962222,1766946643527,-150.0,0.00015686,2]
[399962223,1766946643536,-150.0,0.00015687,2]
[399962224,1766946643545,-150.0,0.0001569,2]
[399962225,1766946643555,-150.0,0.00015693,2]
[399962226,1766946643564,-150.0,0.000157,2]
[399962227,1766946643573,-150.0,0.00015712,2]
[399962228,1766946643583,-150.0,0.00015712,2]
[399962229,1766946643595,-150.0,0.00015712,2]
[399962230,1766946643604,-150.0,0.00015721,2]
[399962231,1766946643614,-150.0,0.00015722,2]
[399962232,1766946643625,-150.0,0.00015724,2]
[399962233,1766946643635,-150.0,0.00015732,2]
[399962234,1766946643645,-150.0,0.00015735,2]
[399962235,1766946643655,-150.0,0.00015739,2]
[399962236,1766946643665,-150.0,0.00015741,2]
[399962237,1766946643674,-150.0,0.00015749,2]
[399962238,1766946643683,-150.0,0.00015751,2]
[399962239,1766946643692,-150.0,0.00015758,2]
[399962240,1766946643702,-150.0,0.00015762,2]
[399962241,1766946643716,-150.0,0.00015765,2]
[399962242,1766946643726,-150.0,0.0001577,2]
[399962243,1766946643735,-150.0,0.00015773,2]
[399962244,1766946643747,-150.0,0.00015779,2]
[399962245,1766946643756,-150.0,0.00015787,2]
[399962246,1766946643767,-150.0,0.0001579,2]
[399962247,1766946643776,-150.0,0.00015792,2]
[399962248,1766946643785,-150.0,0.00015794,2]
[399962249,1766946643795,-150.0,0.00015797,2]
[399962250,1766946643806,-150.0,0.00015797,2]
[399962251,1766946643816,-150.0,0.00015797,2]
[399962252,1766946643825,-150.0,0.00015801,2]
[399962253,1766946643834,-150.0,0.00015809,2]
[399962254,1766946643843,-150.0,0.00015818,2]
[399962255,1766946643852,-150.0,0.00015822,2]
[399962256,1766946643862,-232.09,0.00015824,2]
[399962257,1766946643873,-150.0,0.00015824,2]
[399962258,1766946643883,-150.0,0.00015828,2]
[399962259,1766946643892,-150.0,0.0001583,2]
[399962260,1766946644037,-953.87,0.00015837,2]
[399962261,1766946644072,-17275.20133603,0.00015839,2]
[399962262,1766946644084,-150.0,0.00015841,2]
[399962263,1766946644094,-150.0,0.00015845,2]
[399962264,1766946644104,-150.0,0.00015846,2]
[399962265,1766946644114,-150.0,0.00015847,2]
[399962266,1766946644124,-150.0,0.00015854,2]
[399962267,1766946644135,-150.0,0.00015854,2]
[399962268,1766946644145,-150.0,0.00015854,2]
[399962269,1766946644154,-150.0,0.00015866,2]
[399962270,1766946644164,-150.0,0.00015867,2]
[399962271,1766946644173,-150.0,0.00015869,2]
[399962272,1766946644184,-150.0,0.0001587,2]
[399962273,1766946644194,-150.0,0.00015872,2]
[399962274,1766946644204,-9456.11098514,0.00015874,2]
[399962275,1766946644216,-150.0,0.0001588,2]
[399962276,1766946644226,-150.0,0.00015886,2]
[399962277,1766946644235,-150.0,0.00015887,2]
[399962278,1766946644246,-150.0,0.00015894,2]
[399962279,1766946644257,-150.0,0.00015898,2]
[399962280,1766946644267,-150.0,0.00015902,2]
[399962281,1766946644277,-150.0,0.00015905,2]
[399962282,1766946644288,-150.0,0.00015911,2]
[399962283,1766946644297,-150.0,0.00015913,2]
[399962284,1766946644307,-150.0,0.00015919,2]
[399962285,1766946644316,-150.0,0.0001592,2]
[399962286,1766946644326,-150.0,0.00015925,2]
[399962287,1766946644335,-150.0,0.00015925,2]
[399962288,1766946644345,-150.0,0.00015938,2]
[399962289,1766946644355,-150.0,0.00015943,2]
[399962290,1766946644364,-150.0,0.00015944,2]
[399962291,1766946644374,-150.0,0.00015951,2]
[399962292,1766946644384,-150.0,0.00015958,2]
[399962293,1766946644394,-150.0,0.00015959,2]
[399962294,1766946644404,-150.0,0.00015963,2]
[399962295,1766946644414,-150.0,0.00015967,2]
[399962296,1766946644426,-150.0,0.00015967,2]
[399962297,1766946644437,-150.0,0.00015967,2]
[399962298,1766946644448,-150.0,0.00015967,2]
[399962299,1766946644458,-500.0,0.00015973,2]
[399962300,1766946644468,-200.27562112,0.00015973,2]
[399962301,1766946644478,-500.0,0.00015973,2]
[399962302,1766946644488,-150.0,0.00015974,2]
[399962303,1766946644497,-150.0,0.00015978,2]
[399962304,1766946644507,-150.0,0.00015983,2]
[399962305,1766946644517,-150.0,0.00015987,2]
[399962306,1766946644526,-150.0,0.00015991,2]
[399962307,1766946644536,-150.0,0.00015995,2]
[399962308,1766946644546,-150.0,0.00015999,2]
[399962309,1766946644556,-16961.26309548,0.00016,2]
[399962310,1766946644565,-114467.83555121,0.00016,2]
[399962311,1766946644575,-17005.83516608,0.00016,2]
[399962312,1766946644585,-150.0,0.00016002,2]
[399962313,1766946644595,-150.0,0.00016003,2]
[399962314,1766946644604,-150.0,0.00016004,2]
[399962315,1766946644614,-150.0,0.0001601,2]
[399962316,1766946644624,-150.0,0.00016016,2]
[399962317,1766946644635,-342.81583742,0.0001602,2]
[399962318,1766946644646,-150.0,0.00016021,2]
[399962319,1766946644656,-150.0,0.00016024,2]
[399962320,1766946644666,-150.0,0.00016031,2]
[399962321,1766946644675,-179.0,0.00016038,2]
[399962322,1766946644685,-150.0,0.00016038,2]
[399962323,1766946644695,-150.0,0.0001604,2]
[399962324,1766946644704,-150.0,0.0001604,2]
[399962325,1766946644718,-150.0,0.00016047,2]
[399962326,1766946644728,-150.0,0.00016048,2]
[399962327,1766946644737,-150.0,0.00016057,2]
[399962328,1766946644746,-150.0,0.0001606,2]
[399962329,1766946644757,-150.0,0.00016064,2]
[399962330,1766946644769,-150.0,0.00016078,2]
[399962331,1766946644779,-150.0,0.00016079,2]
[399962332,1766946644791,-150.0,0.0001608,2]
[399962333,1766946644801,-150.0,0.00016083,2]
[399962334,1766946644810,-150.0,0.00016084,2]
[399962335,1766946644821,-150.0,0.00016087,2]
[399962336,1766946644831,-150.0,0.00016088,2]
[399962337,1766946644842,-150.0,0.00016092,2]
[399962338,1766946644851,-150.0,0.00016098,2]
[399962339,1766946644862,-150.0,0.0001611,2]
[399962340,1766946644872,-953.87,0.00016111,2]
[399962341,1766946644882,-150.0,0.00016113,2]
[399962342,1766946644892,-150.0,0.00016117,2]
[399962343,1766946644902,-150.0,0.00016118,2]
[399962344,1766946644912,-150.0,0.00016119,2]
[399962345,1766946644922,-165.82884527,0.0001613,2]
[399962346,1766946644932,-150.0,0.00016137,2]
[399962347,1766946644943,-150.0,0.00016137,2]
[399962348,1766946644953,-150.0,0.00016137,2]
[399962349,1766946644963,-150.0,0.00016137,2]
[399962351,1766946644973,-150.0,0.00016137,2]
[399962353,1766946644983,-150.0,0.00016137,2]
[399962354,1766946644993,-150.0,0.00016137,2]
[399962356,1766946645003,-150.0,0.00016137,2]
[399962357,1766946645014,-322.6107,0.00016149,2]
[399962358,1766946645024,-500.0,0.00016149,2]
[399962359,1766946645035,-1000.0,0.00016149,2]
[399962360,1766946645046,-500.0,0.00016149,2]
[399962361,1766946645055,-1000.0,0.00016149,2]
[399962362,1766946645064,-500.0,0.00016149,2]
[399962363,1766946645073,-500.0,0.00016149,2]
[399962364,1766946645083,-500.0,0.00016149,2]
[399962365,1766946645092,-500.0,0.00016149,2]
[399962366,1766946645102,-500.0,0.00016149,2]
[399962367,1766946645111,-500.0,0.00016149,2]
[399962368,1766946645120,-500.0,0.00016149,2]
[399962369,1766946645129,-500.0,0.00016149,2]
[399962370,1766946645138,-500.0,0.00016149,2]
[399962371,1766946645147,-500.0,0.00016149,2]
[399962372,1766946645156,-500.0,0.00016149,2]
[399962373,1766946645166,-250.0,0.00016149,2]
[399962374,1766946645175,-500.0,0.00016149,2]
[399962375,1766946645184,-320.1146403,0.00016149,2]
[399962376,1766946645193,-500.0,0.00016149,2]
[399962377,1766946645203,-250.0,0.00016149,2]
[399962378,1766946645212,-500.0,0.00016149,2]
[399962379,1766946645221,-500.0,0.00016149,2]
[399962380,1766946645231,-250.0,0.00016149,2]
[399962381,1766946645240,-500.0,0.00016149,2]
[399962382,1766946645249,-500.0,0.00016149,2]
[399962383,1766946645258,-284.76184806,0.00016149,2]
[399962384,1766946645268,-250.0,0.00016149,2]
[399962385,1766946645278,-500.0,0.00016149,2]
[399962386,1766946645287,-500.0,0.00016149,2]
[399962387,1766946645296,-250.0,0.00016149,2]
[399962388,1766946645305,-500.0,0.00016149,2]
[399962389,1766946645314,-500.0,0.00016149,2]
[399962390,1766946645323,-250.0,0.00016149,2]
[399962391,1766946645332,-259.6625457,0.00016149,2]
[399962392,1766946645341,-500.0,0.00016149,2]
[399962393,1766946645350,-250.0,0.00016149,2]
[399962394,1766946645360,-500.0,0.00016149,2]
[399962395,1766946645369,-250.0,0.00016149,2]
[399962396,1766946645380,-250.0,0.00016149,2]
[399962397,1766946645390,-250.0,0.00016149,2]
[399962398,1766946645399,-250.0,0.00016149,2]
[399962399,1766946645410,-200.0,0.00016149,2]
[399962400,1766946645419,-207.4,0.00016149,2]
[399962401,1766946645430,-215.0738,0.00016149,2]
[399962402,1766946645440,-223.0315306,0.00016149,2]
[399962403,1766946645449,-231.28369723,0.00016149,2]
[399962404,1766946645459,-239.84119403,0.00016149,2]
[399962405,1766946645468,-248.71531821,0.00016149,2]
[399962406,1766946645478,-500.0,0.00016149,2]
[399962407,1766946645487,-257.91778498,0.00016149,2]
[399962408,1766946645496,-405.15229211,0.00016149,2]
[399962409,1766946645506,-500.0,0.00016149,2]
[399962410,1766946645515,-500.0,0.00016149,2]
[399962411,1766946645524,-282.13607366,0.00016149,2]
[399962412,1766946645534,-150.0,0.00016155,2]
[399962413,1766946645544,-150.0,0.00016156,2]
[399962414,1766946645555,-150.0,0.00016157,2]
[399962415,1766946645564,-150.0,0.00016161,2]
[399962416,1766946645574,-150.0,0.00016164,2]
[399962417,1766946645583,-150.0,0.00016176,2]
[399962418,1766946645594,-150.0,0.00016182,2]
[399962419,1766946645603,-150.0,0.00016186,2]
[399962420,1766946645613,-150.0,0.00016187,2]
[399962421,1766946645623,-887.0,0.00016189,2]
[399962422,1766946645633,-150.0,0.0001619,2]
[399962423,1766946645645,-150.0,0.00016191,2]
[399962424,1766946645657,-17275.20133603,0.00016193,2]
[399962425,1766946645667,-150.0,0.00016194,2]
[399962426,1766946645678,-150.0,0.00016195,2]
[399962427,1766946645688,-150.0,0.00016196,2]
[399962428,1766946645698,-5000.00409162,0.000162,5]
[399962429,1766946645712,-232.09,0.00016202,2]
[399962430,1766946645721,-150.0,0.0001621,2]
[399962431,1766946645730,-150.0,0.00016214,2]
[399962432,1766946645740,-500.0,0.00016215,2]
[399962433,1766946645751,-500.0,0.00016215,2]
[399962434,1766946645762,-9456.11098514,0.00016216,2]
[399962435,1766946645773,-765.29552727,0.00016216,2]
[399962436,1766946645785,-1000.0,0.00016216,2]
[399962437,1766946645797,-1500.0,0.00016216,2]
[399962438,1766946645807,-2000.0,0.00016216,2]
[399962439,1766946645818,-150.0,0.00016217,2]
[399962440,1766946645830,-150.0,0.00016226,2]
[399962441,1766946645839,-150.0,0.00016227,2]
[399962442,1766946645849,-150.0,0.00016233,2]
[399962443,1766946645858,-150.0,0.00016234,2]
[399962444,1766946645867,-150.0,0.00016236,2]
[399962445,1766946645879,-150.0,0.00016243,2]
[399962446,1766946645888,-150.0,0.0001625,2]
[399962447,1766946645900,-150.0,0.00016253,2]
[399962448,1766946645911,-150.0,0.00016258,2]
[399962449,1766946645922,-150.0,0.00016263,2]
[399962450,1766946645932,-150.0,0.0001627,2]
[399962451,1766946645941,-150.0,0.00016271,2]
[399962452,1766946645951,-150.0,0.00016272,2]
[399962453,1766946645960,-150.0,0.00016275,2]
[399962454,1766946645970,-150.0,0.00016279,2]
[399962455,1766946645979,-150.0,0.00016283,2]
[399962456,1766946645989,-887.0,0.00016287,2]
[399962457,1766946645999,-150.0,0.00016287,2]
[399962458,1766946646009,-150.0,0.00016291,2]
[399962459,1766946646018,-150.0,0.00016296,2]
[399962460,1766946646029,-150.0,0.000163,2]
[399962461,1766946646038,-150.0,0.00016307,2]
[399962462,1766946646049,-150.0,0.00016307,2]
[399962463,1766946646059,-150.0,0.00016307,2]
[399962464,1766946646071,-150.0,0.00016307,2]
[399962465,1766946646080,-150.0,0.00016311,2]
[399962466,1766946646091,-150.0,0.00016315,2]
[399962467,1766946646101,-150.0,0.00016316,2]
[399962468,1766946646111,-150.0,0.00016323,2]
[399962469,1766946646120,-150.0,0.0001633,2]
[399962470,1766946646130,-150.0,0.00016331,2]
[399962471,1766946646140,-150.0,0.00016336,2]
[399962472,1766946646149,-150.0,0.00016349,2]
[399962473,1766946646158,-150.0,0.00016349,2]
[399962474,1766946646170,-150.0,0.00016354,2]
[399962475,1766946646179,-150.0,0.00016355,2]
[399962476,1766946646190,-887.0,0.00016357,2]
[399962477,1766946646200,-150.0,0.0001636,2]
[399962478,1766946646211,-150.0,0.00016363,2]
[399962479,1766946646220,-150.0,0.00016369,2]
[399962480,1766946646232,-150.0,0.00016372,2]
[399962481,1766946646241,-150.0,0.00016376,2]
[399962482,1766946646253,-150.0,0.0001638,2]
[399962483,1766946646263,-953.87,0.00016385,2]
[399962484,1766946646272,-150.0,0.00016387,2]
[399962485,1766946646282,-150.0,0.00016388,2]
[399962486,1766946646292,-150.0,0.00016394,2]
[399962487,1766946646301,-150.0,0.00016402,2]
[399962488,1766946646311,-150.0,0.00016404,2]
[399962489,1766946646320,-150.0,0.00016405,2]
[399962490,1766946646329,-150.0,0.00016407,2]
[399962491,1766946646339,-150.0,0.00016408,2]
[399962492,1766946646349,-150.0,0.0001642,2]
[399962493,1766946646358,-150.0,0.0001642,2]
[399962494,1766946646368,-150.0,0.0001642,2]
[399962495,1766946646377,-150.0,0.00016427,2]
[399962496,1766946646387,-150.0,0.00016428,2]
[399962497,1766946646397,-150.0,0.00016429,2]
[399962498,1766946646407,-150.0,0.00016433,2]
[399962499,1766946646417,-500.0,0.00016438,2]
[399962501,1766946646436,-500.0,0.00016438,2]
[399962503,1766946646447,-500.0,0.00016438,2]
[399962505,1766946646457,-500.0,0.00016438,2]
[399962507,1766946646467,-500.0,0.00016438,2]
[399962509,1766946646477,-500.0,0.00016438,2]
[399962510,1766946646486,-500.0,0.00016438,2]
[399962512,1766946646496,-500.0,0.00016438,2]
[399962514,1766946646506,-500.0,0.00016438,2]
[399962516,1766946646516,-500.0,0.00016438,2]
[399962518,1766946646526,-500.0,0.00016438,2]
[399962520,1766946646535,-500.0,0.00016438,2]
[399962528,1766946646614,-500.0,0.00016438,2]
[399962530,1766946646624,-500.0,0.00016438,2]
[399962532,1766946646633,-500.0,0.00016438,2]
[399962534,1766946646642,-500.0,0.00016438,2]
[399962536,1766946646652,-500.0,0.00016438,2]
[399962538,1766946646661,-500.0,0.00016438,2]
[399962540,1766946646669,-500.0,0.00016438,2]
[399962541,1766946646679,-500.0,0.00016438,2]
[399962543,1766946646688,-500.0,0.00016438,2]
[399962545,1766946646697,-500.0,0.00016438,2]
[399962547,1766946646710,-500.0,0.00016438,2]
[399962549,1766946646720,-500.0,0.00016438,2]
[399962550,1766946646729,-500.0,0.00016438,2]
[399962552,1766946646738,-500.0,0.00016438,2]
[399962554,1766946646748,-422.28052786,0.00016438,2]
[399962556,1766946646758,-500.0,0.00016438,2]
[399962558,1766946646771,-500.0,0.00016438,2]
[399962559,1766946646784,-500.0,0.00016438,2]
[399962560,1766946646795,-500.0,0.00016438,2]
[399962561,1766946646805,-500.0,0.00016438,2]
[399962562,1766946646816,-500.0,0.00016438,2]
[399962563,1766946646828,-500.0,0.00016438,2]
[399962564,1766946646838,-500.0,0.00016438,2]
[399962565,1766946646848,-500.0,0.00016438,2]
[399962566,1766946646858,-500.0,0.00016438,2]
[399962567,1766946646867,-500.0,0.00016438,2]
[399962568,1766946646877,-500.0,0.00016438,2]
[399962569,1766946646886,-500.0,0.00016438,2]
[399962570,1766946646897,-500.0,0.00016438,2]
[399962571,1766946646906,-500.0,0.00016438,2]
[399962572,1766946646915,-500.0,0.00016438,2]
[399962573,1766946646925,-500.0,0.00016438,2]
[399962574,1766946646935,-500.0,0.00016438,2]
[399962575,1766946646945,-500.0,0.00016438,2]
[399962576,1766946646954,-500.0,0.00016438,2]
[399962577,1766946646963,-500.0,0.00016438,2]
[399962578,1766946646974,-500.0,0.00016438,2]
[399962579,1766946646987,-500.0,0.00016438,2]
[399962580,1766946646996,-500.0,0.00016438,2]
[399962581,1766946647006,-500.0,0.00016438,2]
[399962582,1766946647015,-804.86454062,0.00016438,2]
[399962583,1766946647025,-804.86454062,0.00016438,2]
[399962584,1766946647034,-804.86454062,0.00016438,2]
[399962585,1766946647044,-804.86454062,0.00016438,2]
[399962586,1766946647053,-804.86454062,0.00016438,2]
[399962587,1766946647063,-804.86454062,0.00016438,2]
[399962588,1766946647073,-804.86454062,0.00016438,2]
[399962589,1766946647083,-804.86454062,0.00016438,2]
[399962590,1766946647094,-804.86454062,0.00016438,2]
[399962591,1766946647104,-804.86454062,0.00016438,2]
[399962592,1766946647113,-804.86454062,0.00016438,2]
[399962593,1766946647126,-804.86454062,0.00016438,2]
[399962594,1766946647146,-804.86454062,0.00016438,2]
[399962595,1766946647156,-804.86454062,0.00016438,2]
[399962596,1766946647174,-804.86454062,0.00016438,2]
[399962597,1766946647190,-804.86454062,0.00016438,2]
[399962598,1766946647203,-804.86454062,0.00016438,2]
[399962599,1766946647215,-804.86454062,0.00016438,2]
[399962600,1766946647225,-804.86454062,0.00016438,2]
[399962601,1766946647234,-804.86454062,0.00016438,2]
[399962602,1766946647244,-804.86454062,0.00016438,2]
[399962603,1766946647254,-804.86454062,0.00016438,2]
[399962604,1766946647264,-804.86454062,0.00016438,2]
[399962605,1766946647274,-804.86454062,0.00016438,2]
[399962606,1766946647284,-804.86454062,0.00016438,2]
[399962607,1766946647294,-804.86454062,0.00016438,2]
[399962608,1766946647304,-804.86454062,0.00016438,2]
[399962609,1766946647313,-804.86454062,0.00016438,2]
[399962610,1766946647323,-804.86454062,0.00016438,2]
[399962611,1766946647334,-804.86454062,0.00016438,2]
[399962612,1766946647345,-804.86454062,0.00016438,2]
[399962613,1766946647355,-804.86454062,0.00016438,2]
[399962614,1766946647364,-804.86454062,0.00016438,2]
[399962615,1766946647375,-804.86454062,0.00016438,2]
[399962616,1766946647385,-804.86454062,0.00016438,2]
[399962617,1766946647397,-804.86454062,0.00016438,2]
[399962618,1766946647407,-804.86454055,0.00016438,2]
[399962619,1766946647417,-804.86454054,0.00016438,2]
[399962620,1766946647427,-212.82,0.00016438,2]
[399962621,1766946647437,-150.0,0.00016444,2]
[399962622,1766946647446,-152.09829773,0.00016446,2]
[399962623,1766946647456,-150.0,0.00016446,2]
[399962624,1766946647466,-150.0,0.0001645,2]
[399962625,1766946647476,-150.0,0.00016452,2]
[399962626,1766946647486,-150.0,0.00016455,2]
[399962627,1766946647495,-887.0,0.00016456,2]
[399962628,1766946647505,-342.81583742,0.0001646,2]
[399962629,1766946647515,-150.0,0.00016465,2]
[399962630,1766946647525,-515.48135853,0.00016465,2]
[399962631,1766946647535,-150.0,0.00016473,2]
[399962632,1766946647546,-587.0,0.00016473,2]
[399962633,1766946647556,-150.0,0.00016477,2]
[399962634,1766946647566,-150.0,0.00016477,2]
[399962635,1766946647575,-150.0,0.00016477,2]
[399962636,1766946647585,-150.0,0.0001648,2]
[399962637,1766946647599,-150.0,0.00016482,2]
[399962638,1766946647608,-150.0,0.00016484,2]
[399962639,1766946647619,-150.0,0.00016487,2]
[399962640,1766946647628,-150.0,0.00016495,2]
[399962641,1766946647639,-150.0,0.00016501,2]
[399962642,1766946647649,-150.0,0.00016504,2]
[399962643,1766946647659,-150.0,0.00016509,2]
[399962644,1766946647668,-150.0,0.00016512,2]
[399962645,1766946647678,-150.0,0.00016516,2]
[399962646,1766946647687,-1000.0,0.00016521,2]
[399962647,1766946647697,-196.74687624,0.00016521,2]
[399962648,1766946647706,-150.0,0.00016523,2]
[399962649,1766946647716,-150.0,0.00016525,2]
[399962650,1766946647725,-150.0,0.00016533,2]
[399962651,1766946647735,-150.0,0.00016535,2]
[399962652,1766946647747,-150.0,0.00016539,2]
[399962653,1766946647757,-150.0,0.00016542,2]
[399962654,1766946647766,-17275.20133603,0.00016546,2]
[399962655,1766946647775,-150.0,0.0001655,2]
[399962656,1766946647784,-150.0,0.00016552,2]
[399962657,1766946647794,-150.0,0.00016553,2]
[399962658,1766946647806,-9456.11098514,0.00016558,2]
[399962659,1766946647815,-150.0,0.00016562,2]
[399962660,1766946647825,-150.0,0.00016562,2]
[399962661,1766946647834,-150.0,0.00016562,2]
[399962662,1766946647844,-887.0,0.00016568,2]
[399962663,1766946647854,-1740.9,0.00016571,2]
[399962664,1766946647863,-150.0,0.00016574,2]
[399962665,1766946647872,-1600.0,0.00016575,2]
[399962666,1766946647881,-887.0,0.0001658,2]
[399962667,1766946647891,-150.0,0.00016581,2]
[399962668,1766946647901,-150.0,0.00016584,2]
[399962669,1766946647910,-150.0,0.00016587,2]
[399962670,1766946647919,-150.0,0.00016588,2]
[399962671,1766946647929,-150.0,0.00016589,2]
[399962672,1766946647939,-150.0,0.0001659,2]
[399962673,1766946647948,-150.0,0.00016591,2]
[399962674,1766946647958,-806.0,0.00016598,2]
[399962675,1766946647967,-150.0,0.00016598,2]
[399962676,1766946647977,-1000.0,0.000166,2]
[399962677,1766946647986,-150.0,0.000166,2]
[399962678,1766946647996,-1027.0,0.00016613,2]
[399962679,1766946648006,-150.0,0.00016615,2]
[399962680,1766946648016,-150.0,0.0001662,2]
[399962681,1766946648026,-154.72,0.00016621,2]
[399962682,1766946648035,-150.0,0.00016622,2]
[399962683,1766946648044,-150.0,0.00016625,2]
[399962684,1766946648054,-1610.0,0.00016626,2]
[399962685,1766946648064,-150.0,0.00016629,2]
[399962686,1766946648073,-150.0,0.00016631,2]
[399962687,1766946648082,-150.0,0.00016639,2]
[399962688,1766946648092,-150.0,0.00016641,2]
[399962689,1766946648102,-150.0,0.00016647,2]
[399962690,1766946648112,-150.0,0.00016647,2]
[399962691,1766946648121,-150.0,0.00016647,2]
[399962692,1766946648131,-150.0,0.00016647,2]
[399962693,1766946648141,-887.0,0.0001665,2]
[399962694,1766946648150,-150.0,0.00016658,2]
[399962695,1766946648160,-953.87,0.00016659,2]
[399962696,1766946648170,-971.1946189,0.0001666,2]
[399962697,1766946648182,-150.0,0.00016661,2]
[399962698,1766946648202,-154.72,0.00016662,2]
[399962699,1766946648213,-150.0,0.00016668,2]
[399962700,1766946648224,-150.0,0.0001667,2]
[399962701,1766946648234,-150.0,0.00016671,2]
[399962702,1766946648246,-150.0,0.00016673,2]